[Event "*** Titled Tuesday Blitz"]
[Site "Chess.com"]
[Date "2019.06.04"]
[Round "3"]
[White "Kawhi_Leonard2"]
[Black "Jbd735"]
[Result "1/2-1/2"]
[WhiteElo "2237"]
[BlackElo "2433"]
[TimeControl "180+2"]
[EndTime "13:36:47 PDT"]
[Termination "Game drawn by repetition"]

1. e4 {[%clk 0:03:01.9]} 1... e5 {[%clk 0:03:00.4]} 2. Nf3 {[%clk 0:03:02]} 2...
Nc6 {[%clk 0:03:01.4]} 3. Bb5 {[%clk 0:03:02.2]} 3... a6 {[%clk 0:03:02.3]} 4.
Bxc6 {[%clk 0:03:02.5]} 4... dxc6 {[%clk 0:03:03.2]} 5. O-O {[%clk 0:03:04]}
5... f6 {[%clk 0:03:04]} 6. d4 {[%clk 0:03:04.8]} 6... exd4 {[%clk 0:03:04.9]}
7. Nxd4 {[%clk 0:03:06.1]} 7... c5 {[%clk 0:03:06]} 8. Ne2 {[%clk 0:03:07.2]}
8... Qxd1 {[%clk 0:03:06.9]} 9. Rxd1 {[%clk 0:03:07.7]} 9... Bd7 {[%clk
0:03:06.7]} 10. Nbc3 {[%clk 0:03:08.6]} 10... O-O-O {[%clk 0:03:04.1]} 11. f3
{[%clk 0:03:09.8]} 11... Bd6 {[%clk 0:02:12.2]} 12. Bf4 {[%clk 0:03:09.2]} 12...
Bc6 {[%clk 0:02:02.2]} 13. Nd5 {[%clk 0:03:00.9]} 13... Bxd5 {[%clk 0:01:28.1]}
14. Rxd5 {[%clk 0:03:00.8]} 14... Ne7 {[%clk 0:01:28.5]} 15. Rdd1 {[%clk
0:02:53]} 15... Ng6 {[%clk 0:01:08.1]} 16. Bxd6 {[%clk 0:02:43]} 16... cxd6
{[%clk 0:01:08.2]} 17. c4 {[%clk 0:02:39.6]} 17... Ne5 {[%clk 0:01:07.6]} 18. b3
{[%clk 0:02:40.4]} 18... Nc6 {[%clk 0:01:05.8]} 19. Rd2 {[%clk 0:02:36.5]} 19...
b5 {[%clk 0:00:52.7]} 20. cxb5 {[%clk 0:02:28.6]} 20... axb5 {[%clk 0:00:54.6]}
21. Rad1 {[%clk 0:02:29.1]} 21... Kc7 {[%clk 0:00:52.3]} 22. Nc3 {[%clk
0:02:30]} 22... Nd4 {[%clk 0:00:52]} 23. Kf2 {[%clk 0:02:15.1]} 23... Kc6 {[%clk
0:00:49]} 24. Ne2 {[%clk 0:02:09.1]} 24... Nxe2 {[%clk 0:00:48.6]} 25. Kxe2
{[%clk 0:02:10.4]} 25... Rd7 {[%clk 0:00:47.5]} 26. h4 {[%clk 0:02:09.4]} 26...
Ra8 {[%clk 0:00:46.2]} 27. h5 {[%clk 0:02:03.9]} 27... h6 {[%clk 0:00:41.5]} 28.
Ke3 {[%clk 0:02:01.2]} 28... Ra6 {[%clk 0:00:40.4]} 29. Kf4 {[%clk 0:01:59.3]}
29... Kc7 {[%clk 0:00:31.8]} 30. Kf5 {[%clk 0:02:00.1]} 30... Re7 {[%clk
0:00:31.9]} 31. f4 {[%clk 0:02:00.2]} 31... b4 {[%clk 0:00:21.2]} 32. g4 {[%clk
0:02:00.1]} 32... Rc6 {[%clk 0:00:16.8]} 33. Rc2 {[%clk 0:01:45.6]} 33... Kd7
{[%clk 0:00:12.9]} 34. Rd5 {[%clk 0:01:45.9]} 34... Ke8 {[%clk 0:00:12.5]} 35.
e5 {[%clk 0:01:43.8]} 35... fxe5 {[%clk 0:00:10.8]} 36. fxe5 {[%clk 0:01:45]}
36... dxe5 {[%clk 0:00:08]} 37. Rxe5 {[%clk 0:01:20.6]} 37... Rxe5+ {[%clk
0:00:08.2]} 38. Kxe5 {[%clk 0:01:21.9]} 38... Kd7 {[%clk 0:00:09.7]} 39. Rc4
{[%clk 0:01:06.2]} 39... Kc7 {[%clk 0:00:08.3]} 40. Kd5 {[%clk 0:01:06.4]} 40...
Kb6 {[%clk 0:00:08.7]} 41. Rf4 {[%clk 0:01:05.4]} 41... Rc7 {[%clk 0:00:08.6]}
42. Rf8 {[%clk 0:01:02]} 42... Rd7+ {[%clk 0:00:07.6]} 43. Ke4 {[%clk
0:01:00.9]} 43... Ra7 {[%clk 0:00:06.8]} 44. Rb8+ {[%clk 0:00:53.4]} 44... Kc6
{[%clk 0:00:06.4]} 45. Rc8+ {[%clk 0:00:52.2]} 45... Kb5 {[%clk 0:00:06.7]} 46.
Rb8+ {[%clk 0:00:51.4]} 46... Kc6 {[%clk 0:00:07.6]} 47. Rc8+ {[%clk 0:00:52.7]}
47... Kb5 {[%clk 0:00:08.8]} 48. Rb8+ {[%clk 0:00:53.3]} 48... Kc6 {[%clk
0:00:09.9]} 1/2-1/2

[Event "*** Titled Tuesday Blitz"]
[Site "Chess.com"]
[Date "2019.06.04"]
[Round "3"]
[White "Angry_Twin"]
[Black "kleinebeer98"]
[Result "1-0"]
[WhiteElo "2804"]
[BlackElo "2698"]
[TimeControl "180+2"]
[EndTime "13:36:50 PDT"]
[Termination "Angry_Twin won on time"]

1. e4 {[%clk 0:03:01.9]} 1... e5 {[%clk 0:03:00.2]} 2. Nf3 {[%clk 0:03:02.3]}
2... Nc6 {[%clk 0:03:01.8]} 3. Bc4 {[%clk 0:03:03.9]} 3... Nf6 {[%clk
0:03:02.8]} 4. d3 {[%clk 0:03:04.9]} 4... h6 {[%clk 0:03:04.3]} 5. O-O {[%clk
0:03:05.6]} 5... d6 {[%clk 0:03:05.7]} 6. a4 {[%clk 0:03:05.3]} 6... a6 {[%clk
0:03:03.5]} 7. c3 {[%clk 0:03:06.3]} 7... g5 {[%clk 0:03:02.7]} 8. Re1 {[%clk
0:03:06.3]} 8... g4 {[%clk 0:03:03.2]} 9. Nfd2 {[%clk 0:03:06.9]} 9... h5 {[%clk
0:03:03.8]} 10. Nf1 {[%clk 0:03:03.4]} 10... Bh6 {[%clk 0:03:03.2]} 11. Na3
{[%clk 0:02:58.6]} 11... Qe7 {[%clk 0:02:43.3]} 12. b4 {[%clk 0:02:55.1]} 12...
Be6 {[%clk 0:02:31]} 13. Bxe6 {[%clk 0:02:55.8]} 13... fxe6 {[%clk 0:02:22.7]}
14. Nc4 {[%clk 0:02:55.7]} 14... h4 {[%clk 0:02:05.3]} 15. Bxh6 {[%clk
0:02:54.2]} 15... Rxh6 {[%clk 0:02:07.2]} 16. b5 {[%clk 0:02:55.9]} 16... axb5
{[%clk 0:02:02.7]} 17. axb5 {[%clk 0:02:55.9]} 17... Rxa1 {[%clk 0:02:04.6]} 18.
Qxa1 {[%clk 0:02:57.2]} 18... Nd8 {[%clk 0:02:06.5]} 19. d4 {[%clk 0:02:50.9]}
19... Nd7 {[%clk 0:01:43.5]} 20. Qc1 {[%clk 0:02:41]} 20... Qg7 {[%clk 0:01:40]}
21. dxe5 {[%clk 0:02:37.5]} 21... Nxe5 {[%clk 0:01:35.2]} 22. Nxe5 {[%clk
0:02:38.4]} 22... dxe5 {[%clk 0:01:37.1]} 23. Rd1 {[%clk 0:02:39.1]} 23... Nf7
{[%clk 0:01:35.3]} 24. Qa3 {[%clk 0:02:31]} 24... g3 {[%clk 0:01:18.8]} 25. Qa8+
{[%clk 0:02:13.9]} 25... Ke7 {[%clk 0:01:19.4]} 26. Qxb7 {[%clk 0:02:13.4]}
26... gxf2+ {[%clk 0:01:18.7]} 27. Kxf2 {[%clk 0:02:13.4]} 27... Qg4 {[%clk
0:01:04.7]} 28. Qxc7+ {[%clk 0:02:08.5]} 28... Kf8 {[%clk 0:01:05.8]} 29. Rd3
{[%clk 0:01:43.3]} 29... h3 {[%clk 0:00:50.7]} 30. Rxh3 {[%clk 0:01:38]} 30...
Rxh3 {[%clk 0:00:48.1]} 31. gxh3 {[%clk 0:01:39.9]} 31... Qf4+ {[%clk
0:00:45.1]} 32. Ke2 {[%clk 0:01:35.7]} 32... Ng5 {[%clk 0:00:39.9]} 33. Qc5+
{[%clk 0:01:32.4]} 33... Kg8 {[%clk 0:00:36.4]} 34. Qe3 {[%clk 0:01:33.2]} 34...
Qh4 {[%clk 0:00:33.6]} 35. b6 {[%clk 0:01:23.2]} 35... Qh5+ {[%clk 0:00:30.7]}
36. Kd2 {[%clk 0:01:15.2]} 36... Qg6 {[%clk 0:00:21.2]} 37. b7 {[%clk
0:01:13.3]} 37... Nxe4+ {[%clk 0:00:22.6]} 38. Kc1 {[%clk 0:01:12.3]} 38... Qe8
{[%clk 0:00:10.7]} 39. Qxe4 {[%clk 0:01:12.2]} 39... Qb5 {[%clk 0:00:12.6]} 40.
Qg6+ {[%clk 0:01:06.6]} 40... Kh8 {[%clk 0:00:10.1]} 41. Qh6+ {[%clk 0:01:07.6]}
41... Kg8 {[%clk 0:00:10.9]} 42. Qxe6+ {[%clk 0:01:09.5]} 42... Kh8 {[%clk
0:00:12.2]} 43. Qc8+ {[%clk 0:01:07.6]} 43... Kh7 {[%clk 0:00:13.2]} 44. Nd2
{[%clk 0:01:08.1]} 44... Qa5 {[%clk 0:00:05.8]} 45. b8=Q {[%clk 0:01:08.2]}
45... Qa3+ {[%clk 0:00:07.3]} 46. Qb2 {[%clk 0:01:08.6]} 46... Qe7 {[%clk
0:00:08.5]} 47. Qf5+ {[%clk 0:01:08.9]} 47... Kh8 {[%clk 0:00:08.8]} 48. c4
{[%clk 0:01:07.7]} 1-0

[Event "*** Titled Tuesday Blitz"]
[Site "Chess.com"]
[Date "2019.06.04"]
[Round "3"]
[White "Babas"]
[Black "VerdeNotte"]
[Result "0-1"]
[WhiteElo "2379"]
[BlackElo "2784"]
[TimeControl "180+2"]
[EndTime "13:36:51 PDT"]
[Termination "VerdeNotte won by resignation"]

1. e4 {[%clk 0:02:52.7]} 1... g6 {[%clk 0:02:59.9]} 2. d4 {[%clk 0:02:53.8]}
2... Nf6 {[%clk 0:03:00.9]} 3. Nc3 {[%clk 0:02:55.2]} 3... d5 {[%clk 0:03:01.3]}
4. exd5 {[%clk 0:02:55.6]} 4... Nxd5 {[%clk 0:03:02.5]} 5. Bc4 {[%clk
0:02:57.2]} 5... Nxc3 {[%clk 0:03:01.8]} 6. Qf3 {[%clk 0:02:58.3]} 6... e6
{[%clk 0:02:58.7]} 7. bxc3 {[%clk 0:02:56.3]} 7... Bg7 {[%clk 0:02:56.8]} 8. Ne2
{[%clk 0:02:46.3]} 8... O-O {[%clk 0:02:48.3]} 9. O-O {[%clk 0:02:43.5]} 9...
Nd7 {[%clk 0:02:41.9]} 10. Qg3 {[%clk 0:02:31.8]} 10... Nb6 {[%clk 0:02:40.1]}
11. Bd3 {[%clk 0:02:24.6]} 11... Nd5 {[%clk 0:02:41]} 12. Bd2 {[%clk 0:02:20.9]}
12... Qd6 {[%clk 0:02:40.5]} 13. c4 {[%clk 0:02:16.1]} 13... Qxg3 {[%clk
0:02:40.8]} 14. hxg3 {[%clk 0:02:16]} 14... Ne7 {[%clk 0:02:42.1]} 15. c3 {[%clk
0:02:05]} 15... b6 {[%clk 0:02:43.1]} 16. Be4 {[%clk 0:02:03.4]} 16... c6 {[%clk
0:02:44.2]} 17. Bg5 {[%clk 0:01:49.3]} 17... f6 {[%clk 0:02:45.2]} 18. Bc1
{[%clk 0:01:50.2]} 18... Ba6 {[%clk 0:02:45.9]} 19. Ba3 {[%clk 0:01:50.1]} 19...
Kf7 {[%clk 0:02:30.6]} 20. Bd3 {[%clk 0:01:40.9]} 20... Rfe8 {[%clk 0:02:24.5]}
21. Rfe1 {[%clk 0:01:42.2]} 21... Bh6 {[%clk 0:02:20.5]} 22. Bb4 {[%clk
0:01:38.4]} 22... Rac8 {[%clk 0:02:18.4]} 23. Nf4 {[%clk 0:01:17.6]} 23... c5
{[%clk 0:02:16.7]} 24. dxc5 {[%clk 0:01:14]} 24... bxc5 {[%clk 0:02:17.5]} 25.
Ba3 {[%clk 0:01:14.3]} 25... e5 {[%clk 0:02:17.5]} 26. Ne2 {[%clk 0:00:59.8]}
26... Red8 {[%clk 0:02:18.3]} 27. Red1 {[%clk 0:00:58.6]} 27... Rxd3 {[%clk
0:02:16.5]} 28. Rxd3 {[%clk 0:00:50.2]} 28... Bxc4 {[%clk 0:02:17.5]} 29. Rad1
{[%clk 0:00:47.5]} 29... Bxd3 {[%clk 0:02:18.5]} 30. Rxd3 {[%clk 0:00:48.4]}
30... Ke6 {[%clk 0:02:19.3]} 31. c4 {[%clk 0:00:47.2]} 31... Nf5 {[%clk
0:02:15.1]} 32. Rd5 {[%clk 0:00:44.5]} 32... Nd6 {[%clk 0:02:11.5]} 33. Rxc5
{[%clk 0:00:43.3]} 33... Rxc5 {[%clk 0:02:12.8]} 34. Bxc5 {[%clk 0:00:44.7]}
34... a6 {[%clk 0:02:11.6]} 35. Nc3 {[%clk 0:00:17.3]} 35... Nxc4 {[%clk
0:02:12.5]} 36. Kf1 {[%clk 0:00:17.8]} 36... Bd2 {[%clk 0:02:11.9]} 37. Na4
{[%clk 0:00:13.8]} 37... Kd5 {[%clk 0:02:12.8]} 38. Be7 {[%clk 0:00:13.1]} 38...
f5 {[%clk 0:02:10.5]} 39. Ke2 {[%clk 0:00:11.7]} 39... Ba5 {[%clk 0:02:08]} 40.
f3 {[%clk 0:00:13]} 40... e4 {[%clk 0:02:08.8]} 41. g4 {[%clk 0:00:14]} 41...
Kc6 {[%clk 0:02:07.5]} 42. gxf5 {[%clk 0:00:15.3]} 42... gxf5 {[%clk 0:02:06.8]}
43. g4 {[%clk 0:00:16.8]} 43... exf3+ {[%clk 0:02:07]} 44. Kxf3 {[%clk
0:00:18.2]} 44... fxg4+ {[%clk 0:02:07.8]} 45. Kxg4 {[%clk 0:00:19.6]} 45... Kb5
{[%clk 0:02:09.2]} 46. Nc5 {[%clk 0:00:16.9]} 46... Bb4 {[%clk 0:02:10]} 47.
Nxa6 {[%clk 0:00:18.2]} 47... Bxe7 {[%clk 0:02:10.5]} 48. Nc7+ {[%clk
0:00:19.6]} 48... Kc6 {[%clk 0:02:11.6]} 49. Ne6 {[%clk 0:00:19.5]} 49... Ne5+
{[%clk 0:02:03.4]} 50. Kf5 {[%clk 0:00:20.8]} 50... Nf7 {[%clk 0:02:02.4]} 51.
Nd4+ {[%clk 0:00:21.5]} 51... Kd5 {[%clk 0:02:02.7]} 52. Nf3 {[%clk 0:00:22.3]}
52... Nd6+ {[%clk 0:02:01]} 53. Kg4 {[%clk 0:00:22.6]} 53... Ke6 {[%clk
0:02:01.8]} 54. Ng5+ {[%clk 0:00:23.2]} 54... Bxg5 {[%clk 0:02:02.7]} 55. Kxg5
{[%clk 0:00:25.1]} 55... Kf7 {[%clk 0:02:03.8]} 56. Kh6 {[%clk 0:00:25.9]} 56...
Kg8 {[%clk 0:02:04.4]} 57. a4 {[%clk 0:00:27]} 57... Nc4 {[%clk 0:02:05.7]} 58.
Kh5 {[%clk 0:00:27.5]} 58... Kg7 {[%clk 0:02:06.9]} 59. Kg5 {[%clk 0:00:29]}
59... h6+ {[%clk 0:02:08.3]} 60. Kh5 {[%clk 0:00:30.5]} 60... Kh7 {[%clk
0:02:09.9]} 61. Kh4 {[%clk 0:00:32.1]} 61... Kg6 {[%clk 0:02:11.4]} 62. Kg4
{[%clk 0:00:33.6]} 62... h5+ {[%clk 0:02:12.9]} 63. Kh4 {[%clk 0:00:33.9]} 63...
Kh6 {[%clk 0:02:14.3]} 64. Kh3 {[%clk 0:00:34.6]} 64... Kg5 {[%clk 0:02:15.6]}
65. Kg3 {[%clk 0:00:30.3]} 65... h4+ {[%clk 0:02:16.7]} 66. Kf3 {[%clk
0:00:31.6]} 66... Kf5 {[%clk 0:02:17.2]} 67. Ke2 {[%clk 0:00:21.6]} 67... Kg4
{[%clk 0:02:16.1]} 68. Kd3 {[%clk 0:00:21]} 68... h3 {[%clk 0:02:15]} 69. Kxc4
{[%clk 0:00:21.4]} 69... h2 {[%clk 0:02:16.3]} 0-1

[Event "*** Titled Tuesday Blitz"]
[Site "Chess.com"]
[Date "2019.06.04"]
[Round "3"]
[White "Chebure"]
[Black "Poghosyan_Suren"]
[Result "0-1"]
[WhiteElo "2796"]
[BlackElo "2566"]
[TimeControl "180+2"]
[EndTime "13:36:54 PDT"]
[Termination "Poghosyan_Suren won on time"]

1. e4 {[%clk 0:03:01.9]} 1... e6 {[%clk 0:03:00.6]} 2. Nf3 {[%clk 0:03:01]} 2...
d5 {[%clk 0:02:59.5]} 3. e5 {[%clk 0:03:01.8]} 3... c5 {[%clk 0:03:01]} 4. b4
{[%clk 0:03:02.5]} 4... cxb4 {[%clk 0:03:02.6]} 5. a3 {[%clk 0:03:02.6]} 5... d4
{[%clk 0:03:03.6]} 6. axb4 {[%clk 0:02:59.5]} 6... Bxb4 {[%clk 0:03:05.5]} 7.
Bd3 {[%clk 0:02:51.3]} 7... Nc6 {[%clk 0:03:04]} 8. O-O {[%clk 0:02:51.8]} 8...
Nge7 {[%clk 0:03:05.1]} 9. Ba3 {[%clk 0:02:45]} 9... Ng6 {[%clk 0:02:58.7]} 10.
Be4 {[%clk 0:02:35.7]} 10... Bxa3 {[%clk 0:02:53.3]} 11. Bxc6+ {[%clk
0:02:34.5]} 11... bxc6 {[%clk 0:02:53.1]} 12. Nxa3 {[%clk 0:02:36.4]} 12... O-O
{[%clk 0:02:51.7]} 13. d3 {[%clk 0:02:37.4]} 13... Qd5 {[%clk 0:02:51.9]} 14.
Nc4 {[%clk 0:02:35.6]} 14... c5 {[%clk 0:02:51.2]} 15. Re1 {[%clk 0:02:18.1]}
15... Bb7 {[%clk 0:02:50.6]} 16. Ra5 {[%clk 0:02:16.3]} 16... f6 {[%clk
0:02:45.9]} 17. Qd2 {[%clk 0:01:43.9]} 17... fxe5 {[%clk 0:02:09.9]} 18. Ncxe5
{[%clk 0:01:38]} 18... Rf5 {[%clk 0:02:10.6]} 19. Nxg6 {[%clk 0:01:22.5]} 19...
hxg6 {[%clk 0:02:12.5]} 20. Qe2 {[%clk 0:01:22.9]} 20... e5 {[%clk 0:02:05]} 21.
Qf1 {[%clk 0:00:55.8]} 21... Rxf3 {[%clk 0:01:36.4]} 22. gxf3 {[%clk 0:00:40.3]}
22... Qxf3 {[%clk 0:01:33.3]} 23. Re4 {[%clk 0:00:41.2]} 23... Bxe4 {[%clk
0:00:59.2]} 24. dxe4 {[%clk 0:00:41.4]} 24... Qg4+ {[%clk 0:00:49.5]} 25. Qg2
{[%clk 0:00:36.2]} 25... Qd1+ {[%clk 0:00:50.2]} 26. Qf1 {[%clk 0:00:37.2]}
26... Qxc2 {[%clk 0:00:52.1]} 27. f3 {[%clk 0:00:06]} 27... d3 {[%clk
0:00:43.4]} 28. Qh3 {[%clk 0:00:05.4]} 28... Qd1+ {[%clk 0:00:37.6]} 29. Kg2
{[%clk 0:00:06.3]} 29... Qd2+ {[%clk 0:00:35.6]} 30. Kg3 {[%clk 0:00:06.4]}
30... Qf4+ {[%clk 0:00:20.8]} 31. Kg2 {[%clk 0:00:05.9]} 31... d2 {[%clk
0:00:21.1]} 32. Ra1 {[%clk 0:00:04.3]} 32... Rd8 {[%clk 0:00:20.8]} 33. Rd1
{[%clk 0:00:04.6]} 33... c4 {[%clk 0:00:20.9]} 34. Qe6+ {[%clk 0:00:05.5]} 34...
Qf7 {[%clk 0:00:22.8]} 35. Qxe5 {[%clk 0:00:04.6]} 35... Rd3 {[%clk 0:00:22.9]}
36. f4 {[%clk 0:00:03.1]} 36... c3 {[%clk 0:00:23.8]} 0-1

[Event "*** Titled Tuesday Blitz"]
[Site "Chess.com"]
[Date "2019.06.04"]
[Round "3"]
[White "ethylalcohol"]
[Black "bracuarta"]
[Result "0-1"]
[WhiteElo "2045"]
[BlackElo "2100"]
[TimeControl "180+2"]
[EndTime "13:37:01 PDT"]
[Termination "bracuarta won on time"]

1. d4 {[%clk 0:03:01.9]} 1... Nf6 {[%clk 0:03:00.3]} 2. Nf3 {[%clk 0:03:02.3]}
2... g6 {[%clk 0:03:00.8]} 3. Bf4 {[%clk 0:03:02.4]} 3... Bg7 {[%clk 0:03:01.7]}
4. e3 {[%clk 0:03:03.1]} 4... O-O {[%clk 0:03:03]} 5. Be2 {[%clk 0:03:03.6]}
5... d6 {[%clk 0:03:04.5]} 6. h3 {[%clk 0:03:04.6]} 6... Nfd7 {[%clk 0:03:05.9]}
7. Bh2 {[%clk 0:02:56.1]} 7... e5 {[%clk 0:03:06.9]} 8. O-O {[%clk 0:02:56.6]}
8... Nc6 {[%clk 0:03:07.3]} 9. c4 {[%clk 0:02:42.5]} 9... f5 {[%clk 0:03:06.3]}
10. Nc3 {[%clk 0:02:34]} 10... h6 {[%clk 0:03:06]} 11. c5 {[%clk 0:02:03.5]}
11... g5 {[%clk 0:02:58.4]} 12. cxd6 {[%clk 0:01:39.4]} 12... cxd6 {[%clk
0:03:00.3]} 13. Qb3+ {[%clk 0:01:33.2]} 13... Kh8 {[%clk 0:03:00.1]} 14. Nb5
{[%clk 0:01:22.7]} 14... Nb6 {[%clk 0:02:43.9]} 15. dxe5 {[%clk 0:01:13.5]}
15... dxe5 {[%clk 0:02:43.9]} 16. Rad1 {[%clk 0:01:13.9]} 16... Qe7 {[%clk
0:02:44.2]} 17. Qa3 {[%clk 0:00:45.9]} 17... f4 {[%clk 0:02:16.6]} 18. Qxe7
{[%clk 0:00:39.3]} 18... Nxe7 {[%clk 0:02:18.5]} 19. e4 {[%clk 0:00:34.3]} 19...
Bd7 {[%clk 0:01:55.7]} 20. Nd6 {[%clk 0:00:24.9]} 20... Bc6 {[%clk 0:01:53.8]}
21. Bb5 {[%clk 0:00:23.4]} 21... Bxb5 {[%clk 0:01:38.5]} 22. Nxb5 {[%clk
0:00:23.1]} 22... a6 {[%clk 0:01:34.8]} 23. Nc7 {[%clk 0:00:22.4]} 23... Rac8
{[%clk 0:01:26.3]} 24. Ne6 {[%clk 0:00:23.1]} 24... Rf7 {[%clk 0:01:15.7]} 25.
Nxg7 {[%clk 0:00:24.1]} 25... Rxg7 {[%clk 0:01:16.5]} 26. Nxe5 {[%clk
0:00:25.4]} 26... Rc2 {[%clk 0:01:16.5]} 27. Rd8+ {[%clk 0:00:21.4]} 27... Kh7
{[%clk 0:01:13.6]} 28. Rb1 {[%clk 0:00:18.9]} 28... Na4 {[%clk 0:01:05]} 29. Rd7
{[%clk 0:00:15.8]} 29... Ng6 {[%clk 0:01:01.1]} 30. Rxg7+ {[%clk 0:00:14.1]}
30... Kxg7 {[%clk 0:01:01.6]} 31. Nd3 {[%clk 0:00:12.3]} 31... Rd2 {[%clk
0:00:57.7]} 32. Nb4 {[%clk 0:00:07.8]} 32... Nxb2 {[%clk 0:00:54.5]} 33. Nd5
{[%clk 0:00:08]} 33... b5 {[%clk 0:00:51.3]} 34. Kf1 {[%clk 0:00:07.7]} 34...
Nd3 {[%clk 0:00:50.3]} 35. Bg1 {[%clk 0:00:07.8]} 35... Rxa2 {[%clk 0:00:37.9]}
36. f3 {[%clk 0:00:08.4]} 36... Nge5 {[%clk 0:00:32.6]} 37. Bd4 {[%clk
0:00:08.3]} 37... Kf7 {[%clk 0:00:33.4]} 38. Rb3 {[%clk 0:00:07.2]} 38... Ra4
{[%clk 0:00:24.1]} 0-1

[Event "*** Titled Tuesday Blitz"]
[Site "Chess.com"]
[Date "2019.06.04"]
[Round "3"]
[White "GM_dmitrij"]
[Black "mitrabhaa"]
[Result "0-1"]
[WhiteElo "2805"]
[BlackElo "2707"]
[TimeControl "180+2"]
[EndTime "13:37:06 PDT"]
[Termination "mitrabhaa won by resignation"]

1. e4 {[%clk 0:02:59.9]} 1... c6 {[%clk 0:03:00.1]} 2. Nc3 {[%clk 0:03:00.5]}
2... d5 {[%clk 0:03:01.7]} 3. Nf3 {[%clk 0:03:02.4]} 3... dxe4 {[%clk 0:03:03]}
4. Nxe4 {[%clk 0:02:58.9]} 4... Nf6 {[%clk 0:03:04.6]} 5. Qe2 {[%clk 0:02:55.2]}
5... Nxe4 {[%clk 0:03:05.2]} 6. Qxe4 {[%clk 0:02:57.1]} 6... Be6 {[%clk
0:03:06.7]} 7. Qf4 {[%clk 0:02:55.4]} 7... Qd6 {[%clk 0:02:54.6]} 8. Qe3 {[%clk
0:02:30.7]} 8... Bf5 {[%clk 0:02:45.2]} 9. c4 {[%clk 0:02:13.4]} 9... Nd7 {[%clk
0:02:39.3]} 10. Be2 {[%clk 0:02:13.3]} 10... Nf6 {[%clk 0:02:36.2]} 11. O-O
{[%clk 0:02:08.6]} 11... e6 {[%clk 0:02:36.9]} 12. b3 {[%clk 0:02:03.1]} 12...
Be7 {[%clk 0:02:27.3]} 13. Bb2 {[%clk 0:02:03]} 13... Ng4 {[%clk 0:02:27.5]} 14.
Qd4 {[%clk 0:01:58.3]} 14... Qxd4 {[%clk 0:02:03.8]} 15. Nxd4 {[%clk 0:02:00.2]}
15... Nh6 {[%clk 0:02:04.8]} 16. Nxf5 {[%clk 0:01:50.3]} 16... Nxf5 {[%clk
0:02:03.7]} 17. g4 {[%clk 0:01:51.1]} 17... O-O-O {[%clk 0:02:01.4]} 18. gxf5
{[%clk 0:01:07]} 18... Rxd2 {[%clk 0:02:00.7]} 19. Bg4 {[%clk 0:01:08.9]} 19...
Rxb2 {[%clk 0:01:54.7]} 20. fxe6 {[%clk 0:01:09.9]} 20... f6 {[%clk 0:01:55.1]}
21. Rfd1 {[%clk 0:01:01.9]} 21... g6 {[%clk 0:01:38.9]} 22. Rd7 {[%clk
0:00:47.7]} 22... Re8 {[%clk 0:01:37.5]} 23. Rf1 {[%clk 0:00:31.7]} 23... Rxa2
{[%clk 0:01:31]} 24. Bd1 {[%clk 0:00:29.9]} 24... Ra5 {[%clk 0:01:23.7]} 25. Re1
{[%clk 0:00:29.2]} 25... Bb4 {[%clk 0:01:15.1]} 26. Re3 {[%clk 0:00:28.1]} 26...
Re7 {[%clk 0:01:14.3]} 27. Rxe7 {[%clk 0:00:22.2]} 27... Bxe7 {[%clk 0:01:14.1]}
28. Kf1 {[%clk 0:00:22.3]} 28... Re5 {[%clk 0:00:54.9]} 29. Rxe5 {[%clk
0:00:23]} 29... fxe5 {[%clk 0:00:55.9]} 30. Ke2 {[%clk 0:00:19.3]} 30... Kc7
{[%clk 0:00:56.8]} 31. Kd3 {[%clk 0:00:18.5]} 31... Bc5 {[%clk 0:00:57.1]} 32.
Bg4 {[%clk 0:00:09.9]} 32... Kd6 {[%clk 0:00:57]} 33. f3 {[%clk 0:00:10.4]}
33... Bg1 {[%clk 0:00:55.9]} 34. h4 {[%clk 0:00:07.7]} 34... h5 {[%clk
0:00:56.7]} 35. Bh3 {[%clk 0:00:08.9]} 35... Bf2 {[%clk 0:00:57.9]} 36. Ke4
{[%clk 0:00:10.2]} 36... Bxh4 {[%clk 0:00:57.7]} 37. f4 {[%clk 0:00:11.7]} 37...
exf4 {[%clk 0:00:57.7]} 38. Kxf4 {[%clk 0:00:13.6]} 38... Bf6 {[%clk 0:00:58.6]}
39. Ke4 {[%clk 0:00:14]} 39... a5 {[%clk 0:00:53.7]} 40. Kf4 {[%clk 0:00:13.5]}
40... b5 {[%clk 0:00:52.2]} 41. cxb5 {[%clk 0:00:15.4]} 41... cxb5 {[%clk
0:00:53.4]} 42. Bf1 {[%clk 0:00:17.3]} 42... a4 {[%clk 0:00:54.1]} 43. bxa4
{[%clk 0:00:19.2]} 43... bxa4 {[%clk 0:00:55.3]} 44. Bc4 {[%clk 0:00:20.8]}
44... a3 {[%clk 0:00:56]} 45. Ba2 {[%clk 0:00:21.7]} 45... g5+ {[%clk
0:00:55.1]} 46. Kf5 {[%clk 0:00:22.9]} 46... Be7 {[%clk 0:00:56.6]} 47. Ke4
{[%clk 0:00:22.8]} 47... h4 {[%clk 0:00:57.1]} 48. Kf3 {[%clk 0:00:23.9]} 48...
Ke5 {[%clk 0:00:58]} 49. Kg4 {[%clk 0:00:25.1]} 49... Kd4 {[%clk 0:00:59]} 50.
Kh3 {[%clk 0:00:24]} 50... Kc3 {[%clk 0:01:00.1]} 51. Kg4 {[%clk 0:00:25.9]}
51... Kb2 {[%clk 0:01:01.4]} 0-1